[Event "Live Chess"]
[Site "Chess.com"]
[Date "2023.05.21"]
[Round "-"]
[White "KGreenGator"]
[Black "Pablo_dmp"]
[Result "1/2-1/2"]
[WhiteElo "1802"]
[BlackElo "1861"]
[TimeControl "300"]
[EndTime "18:51:27 PDT"]
[Termination "Game drawn by repetition"]

1. c4 {[%clk 0:04:58.8]} 1... Nf6 {[%clk 0:04:57.7]} 2. Nc3 {[%clk 0:04:57.1]}
2... e6 {[%clk 0:04:55.3]} 3. d4 {[%clk 0:04:56.1]} 3... d5 {[%clk 0:04:53.2]}
4. e3 {[%clk 0:04:54.6]} 4... a6 {[%clk 0:04:49.5]} 5. Nf3 {[%clk 0:04:53.5]}
5... Be7 {[%clk 0:04:47.6]} 6. h3 {[%clk 0:04:52]} 6... Nbd7 {[%clk 0:04:42.7]}
7. a3 {[%clk 0:04:50.3]} 7... Rb8 {[%clk 0:04:38.8]} 8. Bd2 {[%clk 0:04:48.7]}
8... O-O {[%clk 0:04:36.5]} 9. c5 {[%clk 0:04:47.5]} 9... c6 {[%clk 0:04:31.9]}
10. Bd3 {[%clk 0:04:44.5]} 10... b6 {[%clk 0:04:28.9]} 11. b4 {[%clk 0:04:42.7]}
11... a5 {[%clk 0:04:25.3]} 12. O-O {[%clk 0:04:39.8]} 12... axb4 {[%clk
0:04:24.2]} 13. axb4 {[%clk 0:04:38.2]} 13... bxc5 {[%clk 0:04:24.1]} 14. bxc5
{[%clk 0:04:37.4]} 14... Qc7 {[%clk 0:04:18.7]} 15. Re1 {[%clk 0:04:32.4]} 15...
e5 {[%clk 0:04:15.9]} 16. Bc2 {[%clk 0:04:25.5]} 16... e4 {[%clk 0:04:11.7]} 17.
Nh2 {[%clk 0:04:23.9]} 17... Ne8 {[%clk 0:03:28.2]} 18. f3 {[%clk 0:04:22.1]}
18... f5 {[%clk 0:03:26.6]} 19. fxe4 {[%clk 0:04:19.3]} 19... fxe4 {[%clk
0:03:26.5]} 20. Rf1 {[%clk 0:04:17.5]} 20... Ndf6 {[%clk 0:03:16.5]} 21. Ng4
{[%clk 0:04:08.4]} 21... Nxg4 {[%clk 0:03:13.2]} 22. hxg4 {[%clk 0:04:07.2]}
22... Rxf1+ {[%clk 0:03:10.4]} 23. Kxf1 {[%clk 0:04:04.4]} 23... Qg3 {[%clk
0:03:06.2]} 24. Qe1 {[%clk 0:03:50.7]} 24... Qxe1+ {[%clk 0:03:02]} 25. Bxe1
{[%clk 0:03:44.8]} 25... Bxg4 {[%clk 0:03:01.9]} 26. Bg3 {[%clk 0:03:41.8]}
26... Rb2 {[%clk 0:02:57.3]} 27. Rc1 {[%clk 0:03:39.3]} 27... h5 {[%clk
0:02:51.1]} 28. Ba4 {[%clk 0:03:35]} 28... h4 {[%clk 0:02:31.1]} 29. Bh2 {[%clk
0:03:32.5]} 29... h3 {[%clk 0:02:24.9]} 30. gxh3 {[%clk 0:03:24.4]} 30... Bxh3+
{[%clk 0:02:24.8]} 31. Kg1 {[%clk 0:03:23.1]} 31... Bg5 {[%clk 0:02:11.6]} 32.
Bf4 {[%clk 0:03:15.7]} 32... Bh4 {[%clk 0:02:08.7]} 33. Bxc6 {[%clk 0:03:07.3]}
33... Nc7 {[%clk 0:01:57.8]} 34. Bxc7 {[%clk 0:02:59.9]} 34... Bf2+ {[%clk
0:01:56.1]} 35. Kh1 {[%clk 0:02:58.8]} 35... Bg2+ {[%clk 0:01:33.8]} 36. Kh2
{[%clk 0:02:47]} 36... Bxe3 {[%clk 0:01:31.9]} 37. Bxd5+ {[%clk 0:02:45.5]}
37... Kh7 {[%clk 0:01:21.2]} 38. Rb1 {[%clk 0:02:37.9]} 38... Rc2 {[%clk
0:01:12.6]} 39. Ba5 {[%clk 0:02:19.5]} 39... Bxd4 {[%clk 0:01:09.2]} 40. Bb3
{[%clk 0:01:51.1]} 40... Be5+ {[%clk 0:00:45.9]} 41. Kg1 {[%clk 0:01:45.6]}
41... Bd4+ {[%clk 0:00:32.2]} 42. Kh2 {[%clk 0:01:44.1]} 42... Be5+ {[%clk
0:00:22.3]} 43. Kg1 {[%clk 0:01:42.8]} 43... Bd4+ {[%clk 0:00:22.2]} 44. Kh2
{[%clk 0:01:42]} 1/2-1/2

[Event "Live Chess"]
[Site "Chess.com"]
[Date "2023.05.21"]
[Round "-"]
[White "ViktorTheCoolBoy"]
[Black "smoggyrabbit"]
[Result "1-0"]
[WhiteElo "2514"]
[BlackElo "1749"]
[TimeControl "300"]
[EndTime "18:51:36 PDT"]
[Termination "ViktorTheCoolBoy won by checkmate"]

1. d4 {[%clk 0:04:58.3]} 1... e6 {[%clk 0:04:58.5]} 2. c4 {[%clk 0:04:57.3]}
2... f5 {[%clk 0:04:57.3]} 3. Nc3 {[%clk 0:04:56.1]} 3... Nf6 {[%clk 0:04:56.5]}
4. f3 {[%clk 0:04:55.2]} 4... Bb4 {[%clk 0:04:54.5]} 5. Bg5 {[%clk 0:04:54.4]}
5... O-O {[%clk 0:04:52.8]} 6. Qc2 {[%clk 0:04:51.9]} 6... b6 {[%clk 0:04:40.1]}
7. e4 {[%clk 0:04:47.1]} 7... fxe4 {[%clk 0:04:31.4]} 8. fxe4 {[%clk 0:04:47]}
8... Bxc3+ {[%clk 0:04:29.8]} 9. bxc3 {[%clk 0:04:45.6]} 9... Bb7 {[%clk
0:04:22.8]} 10. e5 {[%clk 0:04:44]} 10... Qe8 {[%clk 0:03:57.3]} 11. exf6 {[%clk
0:04:40.8]} 11... gxf6 {[%clk 0:03:47]} 12. Be3 {[%clk 0:04:35]} 12... Qh5
{[%clk 0:03:37.6]} 13. Ne2 {[%clk 0:04:33.5]} 13... d6 {[%clk 0:03:16.4]} 14.
Ng3 {[%clk 0:04:29.8]} 14... Qg6 {[%clk 0:03:11.9]} 15. Qxg6+ {[%clk 0:04:25.1]}
15... hxg6 {[%clk 0:03:11.8]} 16. h4 {[%clk 0:04:22.8]} 16... e5 {[%clk
0:03:10.3]} 17. d5 {[%clk 0:04:20.8]} 17... Nd7 {[%clk 0:03:08.7]} 18. h5 {[%clk
0:04:19.7]} 18... f5 {[%clk 0:03:07.2]} 19. Bh6 {[%clk 0:04:17.9]} 19... Rf6
{[%clk 0:03:04.8]} 20. Bg5 {[%clk 0:04:16.7]} 20... Rff8 {[%clk 0:03:02.3]} 21.
hxg6 {[%clk 0:04:14.8]} 21... f4 {[%clk 0:02:57.8]} 22. Ne4 {[%clk 0:04:13.2]}
22... f3 {[%clk 0:02:51.2]} 23. Rh7 {[%clk 0:04:10.5]} 23... Nc5 {[%clk
0:02:34.1]} 24. Nf6+ {[%clk 0:04:08.1]} 24... Rxf6 {[%clk 0:02:27.3]} 25. Bxf6
{[%clk 0:04:08]} 25... Rf8 {[%clk 0:02:15.3]} 26. Rh8# {[%clk 0:04:07.1]} 1-0

[Event "Live Chess"]
[Site "Chess.com"]
[Date "2023.05.21"]
[Round "-"]
[White "wot-not"]
[Black "Duke_of_Bebington"]
[Result "1-0"]
[WhiteElo "1551"]
[BlackElo "1572"]
[TimeControl "300"]
[EndTime "18:51:38 PDT"]
[Termination "wot-not won by resignation"]

1. d4 {[%clk 0:04:55.1]} 1... d5 {[%clk 0:04:54.7]} 2. c4 {[%clk 0:04:52.6]}
2... c6 {[%clk 0:04:52.4]} 3. Nc3 {[%clk 0:04:51.8]} 3... e5 {[%clk 0:04:49.9]}
4. dxe5 {[%clk 0:04:50.1]} 4... d4 {[%clk 0:04:49]} 5. Ne4 {[%clk 0:04:48.2]}
5... Qa5+ {[%clk 0:04:48]} 6. Bd2 {[%clk 0:04:46.2]} 6... Qxe5 {[%clk
0:04:46.4]} 7. Qc2 {[%clk 0:04:37.6]} 7... Bf5 {[%clk 0:04:38.7]} 8. f3 {[%clk
0:04:34.4]} 8... Be7 {[%clk 0:04:27.7]} 9. O-O-O {[%clk 0:04:32.5]} 9... Nf6
{[%clk 0:04:22.3]} 10. Qb3 {[%clk 0:04:17.3]} 10... b6 {[%clk 0:04:05.7]} 11.
Nxf6+ {[%clk 0:04:15.8]} 11... Bxf6 {[%clk 0:04:01.3]} 12. g4 {[%clk 0:03:52.3]}
12... Be6 {[%clk 0:03:51.4]} 13. f4 {[%clk 0:03:45.4]} 13... Qe4 {[%clk
0:03:44.2]} 14. Nf3 {[%clk 0:03:43.6]} 14... Bxg4 {[%clk 0:03:41.9]} 15. Rg1
{[%clk 0:03:26]} 15... Bxf3 {[%clk 0:03:36.2]} 16. exf3 {[%clk 0:03:24.7]} 16...
Qxf3 {[%clk 0:03:33.2]} 17. Bg2 {[%clk 0:03:17.9]} 17... Qh5 {[%clk 0:03:29.3]}
18. Bb4 {[%clk 0:03:03.9]} 18... Qf5 {[%clk 0:02:57.7]} 19. Rge1+ {[%clk
0:02:57.1]} 19... Kd8 {[%clk 0:02:55.9]} 20. Bd6 {[%clk 0:02:34.2]} 20... Nd7
{[%clk 0:02:12.8]} 21. Bxc6 {[%clk 0:02:30.7]} 21... Rc8 {[%clk 0:02:06.9]} 22.
Bxd7 {[%clk 0:02:21.9]} 22... Kxd7 {[%clk 0:02:00.7]} 23. Be5 {[%clk 0:02:21.4]}
23... Bxe5 {[%clk 0:01:55.4]} 24. fxe5 {[%clk 0:02:18.4]} 24... Qf4+ {[%clk
0:01:36.3]} 25. Kb1 {[%clk 0:02:15.2]} 25... Rhe8 {[%clk 0:01:33.8]} 26. Qh3+
{[%clk 0:02:01.6]} 26... Kc7 {[%clk 0:01:26]} 27. Qxh7 {[%clk 0:01:45.3]} 27...
g6 {[%clk 0:01:18.2]} 28. Rf1 {[%clk 0:01:31.6]} 28... Qe4+ {[%clk 0:01:15.3]}
29. Ka1 {[%clk 0:01:29.6]} 29... Re7 {[%clk 0:01:14.4]} 30. Rxf7 {[%clk
0:01:26]} 30... Qxe5 {[%clk 0:01:12.2]} 31. Rxe7+ {[%clk 0:01:24.1]} 31... Qxe7
{[%clk 0:01:11.9]} 32. Qxe7+ {[%clk 0:01:23.1]} 32... Kb8 {[%clk 0:01:11.2]} 1-0

[Event "Live Chess"]
[Site "Chess.com"]
[Date "2023.05.21"]
[Round "-"]
[White "Tushinskiy"]
[Black "NateSolon"]
[Result "0-1"]
[WhiteElo "2178"]
[BlackElo "2667"]
[TimeControl "300"]
[EndTime "18:52:01 PDT"]
[Termination "NateSolon won by resignation"]

1. d4 {[%clk 0:04:56.9]} 1... Nf6 {[%clk 0:04:58.8]} 2. c3 {[%clk 0:04:56.8]}
2... d5 {[%clk 0:04:57.6]} 3. Nf3 {[%clk 0:04:56.7]} 3... Bf5 {[%clk 0:04:56.2]}
4. Bf4 {[%clk 0:04:55.9]} 4... e6 {[%clk 0:04:55.4]} 5. Nbd2 {[%clk 0:04:55.3]}
5... c5 {[%clk 0:04:54.7]} 6. Bg3 {[%clk 0:04:54.9]} 6... Nc6 {[%clk 0:04:53.9]}
7. e3 {[%clk 0:04:54.1]} 7... Qb6 {[%clk 0:04:52.9]} 8. Qc1 {[%clk 0:04:52.3]}
8... Rc8 {[%clk 0:04:51]} 9. Nb3 {[%clk 0:04:51.3]} 9... c4 {[%clk 0:04:44.8]}
10. Nbd2 {[%clk 0:04:49.8]} 10... h6 {[%clk 0:04:37.5]} 11. Be2 {[%clk
0:04:48.4]} 11... Be7 {[%clk 0:04:35.9]} 12. O-O {[%clk 0:04:47.5]} 12... O-O
{[%clk 0:04:34.9]} 13. Re1 {[%clk 0:04:46.7]} 13... Qa5 {[%clk 0:04:22.6]} 14.
Ne5 {[%clk 0:04:44.9]} 14... b5 {[%clk 0:04:17.9]} 15. a3 {[%clk 0:04:43.4]}
15... Qb6 {[%clk 0:04:08]} 16. Bf3 {[%clk 0:04:42]} 16... Nxe5 {[%clk
0:04:00.8]} 17. Bxe5 {[%clk 0:04:38.5]} 17... Nd7 {[%clk 0:03:47]} 18. Bg3
{[%clk 0:04:36.5]} 18... Bd3 {[%clk 0:03:40.7]} 19. e4 {[%clk 0:04:34.9]} 19...
dxe4 {[%clk 0:03:30.5]} 20. Nxe4 {[%clk 0:04:33.5]} 20... a5 {[%clk 0:03:23.6]}
21. h3 {[%clk 0:04:24.1]} 21... b4 {[%clk 0:03:22.4]} 22. axb4 {[%clk
0:04:22.3]} 22... axb4 {[%clk 0:03:22.3]} 23. Kh2 {[%clk 0:04:20.9]} 23... f5
{[%clk 0:03:13.6]} 24. Nc5 {[%clk 0:04:14.4]} 24... Nxc5 {[%clk 0:03:08.1]} 25.
dxc5 {[%clk 0:04:14.3]} 25... Bxc5 {[%clk 0:03:08]} 26. cxb4 {[%clk 0:04:10.8]}
26... Bxb4 {[%clk 0:03:04.2]} 27. Re5 {[%clk 0:04:05.3]} 27... Bd6 {[%clk
0:02:53.8]} 28. Qd2 {[%clk 0:03:59.6]} 28... f4 {[%clk 0:02:23.9]} 29. Bxf4
{[%clk 0:03:52.4]} 29... Qd4 {[%clk 0:02:22.9]} 30. Bxh6 {[%clk 0:03:19.1]}
30... Qxe5+ {[%clk 0:02:16.3]} 31. g3 {[%clk 0:03:18]} 31... Rxf3 {[%clk
0:02:14.5]} 32. Re1 {[%clk 0:03:12.2]} 32... Qf6 {[%clk 0:02:05.3]} 33. Be3
{[%clk 0:03:10]} 33... Rf8 {[%clk 0:01:59.9]} 34. Kg2 {[%clk 0:03:07.1]} 34...
Be4 {[%clk 0:01:49.2]} 35. Kg1 {[%clk 0:03:02]} 35... Bd5 {[%clk 0:01:41.9]} 36.
Bd4 {[%clk 0:02:46.6]} 36... Qf5 {[%clk 0:01:38.2]} 0-1

[Event "Live Chess"]
[Site "Chess.com"]
[Date "2023.05.21"]
[Round "-"]
[White "Olisingapore"]
[Black "Fazer180"]
[Result "1-0"]
[WhiteElo "1805"]
[BlackElo "1757"]
[TimeControl "300"]
[EndTime "18:52:05 PDT"]
[Termination "Olisingapore won by resignation"]

1. d4 {[%clk 0:04:47.9]} 1... e6 {[%clk 0:04:59.9]} 2. c4 {[%clk 0:04:46.9]}
2... d5 {[%clk 0:04:59.4]} 3. g3 {[%clk 0:04:45.4]} 3... Nf6 {[%clk 0:04:58.6]}
4. Bg2 {[%clk 0:04:45.1]} 4... c5 {[%clk 0:04:48.5]} 5. Nf3 {[%clk 0:04:43.8]}
5... dxc4 {[%clk 0:04:45.5]} 6. O-O {[%clk 0:04:42.4]} 6... Nc6 {[%clk
0:04:41.3]} 7. dxc5 {[%clk 0:04:41.7]} 7... Bxc5 {[%clk 0:04:33.6]} 8. Qc2
{[%clk 0:04:36.7]} 8... O-O {[%clk 0:04:24]} 9. Qxc4 {[%clk 0:04:35.7]} 9... Qb6
{[%clk 0:04:18.5]} 10. Nc3 {[%clk 0:04:27.8]} 10... Be7 {[%clk 0:04:00.4]} 11.
Be3 {[%clk 0:04:18.6]} 11... Qb4 {[%clk 0:03:50.5]} 12. Qxb4 {[%clk 0:04:16.1]}
12... Nxb4 {[%clk 0:03:45.7]} 13. a3 {[%clk 0:04:12.8]} 13... Nbd5 {[%clk
0:03:43.9]} 14. Nxd5 {[%clk 0:04:11.4]} 14... Nxd5 {[%clk 0:03:43.1]} 15. Bg5
{[%clk 0:04:05.9]} 15... f6 {[%clk 0:03:34.4]} 16. Bd2 {[%clk 0:04:02.2]} 16...
e5 {[%clk 0:03:28.6]} 17. Nxe5 {[%clk 0:03:48]} 17... Rd8 {[%clk 0:03:25.2]} 18.
Ba5 {[%clk 0:03:42.9]} 18... b6 {[%clk 0:03:17]} 19. Nc6 {[%clk 0:03:34]} 19...
Rd7 {[%clk 0:02:48]} 20. Nxe7+ {[%clk 0:03:30.3]} 20... Rxe7 {[%clk 0:02:41.2]}
21. Bxd5+ {[%clk 0:03:28.5]} 21... Be6 {[%clk 0:02:33.7]} 22. Bxa8 {[%clk
0:03:25.5]} 22... bxa5 {[%clk 0:02:33.1]} 23. Rfd1 {[%clk 0:03:21.1]} 23... Bb3
{[%clk 0:02:30.6]} 24. Rd8+ {[%clk 0:03:14.9]} 24... Kf7 {[%clk 0:02:29.5]} 25.
Bd5+ {[%clk 0:03:13.3]} 25... Bxd5 {[%clk 0:02:26.9]} 26. Rxd5 {[%clk
0:03:12.6]} 26... Rxe2 {[%clk 0:02:26.6]} 27. Rxa5 {[%clk 0:03:09.5]} 27... Rxb2
{[%clk 0:02:25.5]} 28. Rxa7+ {[%clk 0:03:09.1]} 28... Kg6 {[%clk 0:02:24.1]} 29.
a4 {[%clk 0:03:08.5]} 1-0

[Event "Live Chess"]
[Site "Chess.com"]
[Date "2023.05.21"]
[Round "-"]
[White "PaulyD81"]
[Black "Long1968"]
[Result "1-0"]
[WhiteElo "1203"]
[BlackElo "1039"]
[TimeControl "300"]
[EndTime "18:52:45 PDT"]
[Termination "PaulyD81 won on time"]

1. d4 {[%clk 0:04:57.3]} 1... e6 {[%clk 0:04:56.9]} 2. c4 {[%clk 0:04:56.2]}
2... c5 {[%clk 0:04:53.1]} 3. d5 {[%clk 0:04:47.6]} 3... b5 {[%clk 0:04:50.1]}
4. e4 {[%clk 0:04:40.3]} 4... bxc4 {[%clk 0:04:44.3]} 5. Bxc4 {[%clk 0:04:38.3]}
5... Bb7 {[%clk 0:04:37.6]} 6. Nc3 {[%clk 0:04:36.4]} 6... Nf6 {[%clk 0:04:21]}
7. Nf3 {[%clk 0:04:20.3]} 7... g6 {[%clk 0:04:01.1]} 8. Bg5 {[%clk 0:04:16.8]}
8... h6 {[%clk 0:03:53]} 9. Bh4 {[%clk 0:04:08.9]} 9... g5 {[%clk 0:03:47.5]}
10. Bg3 {[%clk 0:03:58.7]} 10... Bg7 {[%clk 0:03:38.8]} 11. O-O {[%clk
0:03:51.4]} 11... O-O {[%clk 0:03:34]} 12. Re1 {[%clk 0:03:32.5]} 12... Nh5
{[%clk 0:03:15.4]} 13. Ne5 {[%clk 0:03:11.9]} 13... Nxg3 {[%clk 0:03:04.6]} 14.
Ng4 {[%clk 0:02:44.4]} 14... Nh5 {[%clk 0:02:49.1]} 15. Ne3 {[%clk 0:02:28.5]}
15... Nf4 {[%clk 0:02:36.7]} 16. Ng4 {[%clk 0:02:18.7]} 16... h5 {[%clk
0:02:21.6]} 17. Ne3 {[%clk 0:02:07.4]} 17... g4 {[%clk 0:01:53.1]} 18. g3 {[%clk
0:02:04.7]} 18... Nh3+ {[%clk 0:01:41.7]} 19. Kf1 {[%clk 0:01:57.4]} 19... Ba6
{[%clk 0:01:32.2]} 20. Bxa6 {[%clk 0:01:53.8]} 20... Nxa6 {[%clk 0:01:29.7]} 21.
dxe6 {[%clk 0:01:51.9]} 21... dxe6 {[%clk 0:01:24.8]} 22. Qxd8 {[%clk 0:01:30]}
22... Rfxd8 {[%clk 0:01:17]} 23. Rad1 {[%clk 0:01:26]} 23... Nb4 {[%clk
0:01:02]} 24. Re2 {[%clk 0:01:01.6]} 24... Rxd1+ {[%clk 0:00:44.1]} 25. Nexd1
{[%clk 0:00:57.9]} 25... Rd8 {[%clk 0:00:37.2]} 26. Ne3 {[%clk 0:00:43.4]} 26...
Bxc3 {[%clk 0:00:30.5]} 27. bxc3 {[%clk 0:00:41.4]} 27... Nd3 {[%clk 0:00:17.8]}
28. c4 {[%clk 0:00:37.1]} 28... Nhxf2 {[%clk 0:00:14.3]} 29. Nc2 {[%clk
0:00:33.7]} 29... Nh3 {[%clk 0:00:03.9]} 30. Ne1 {[%clk 0:00:32]} 30... Nxe1
{[%clk 0:00:00.7]} 31. Rxe1 {[%clk 0:00:31.2]} 1-0

[Event "Live Chess"]
[Site "Chess.com"]
[Date "2023.05.21"]
[Round "-"]
[White "garyjc"]
[Black "KeithArkell"]
[Result "0-1"]
[WhiteElo "1046"]
[BlackElo "2573"]
[TimeControl "300"]
[EndTime "18:53:01 PDT"]
[Termination "KeithArkell won on time"]

1. e4 {[%clk 0:04:56.2]} 1... c6 {[%clk 0:04:59]} 2. d4 {[%clk 0:04:54.6]} 2...
d5 {[%clk 0:04:58.3]} 3. Nc3 {[%clk 0:04:52.3]} 3... dxe4 {[%clk 0:04:57.3]} 4.
Nxe4 {[%clk 0:04:51.3]} 4... Nd7 {[%clk 0:04:56.5]} 5. Nf3 {[%clk 0:04:44.7]}
5... Ngf6 {[%clk 0:04:55.6]} 6. Bd3 {[%clk 0:04:39.3]} 6... Nxe4 {[%clk
0:04:54.2]} 7. Bxe4 {[%clk 0:04:37.7]} 7... Nf6 {[%clk 0:04:53.9]} 8. Bd3 {[%clk
0:04:27.9]} 8... Bg4 {[%clk 0:04:51.5]} 9. h3 {[%clk 0:04:24.1]} 9... Bxf3
{[%clk 0:04:50.2]} 10. Qxf3 {[%clk 0:04:22.2]} 10... Qxd4 {[%clk 0:04:49.2]} 11.
O-O {[%clk 0:04:11.4]} 11... e6 {[%clk 0:04:48.2]} 12. c3 {[%clk 0:04:00.9]}
12... Qd5 {[%clk 0:04:46.9]} 13. Qe2 {[%clk 0:03:54.8]} 13... Be7 {[%clk
0:04:45.7]} 14. Be3 {[%clk 0:03:49.4]} 14... O-O {[%clk 0:04:43.6]} 15. Rad1
{[%clk 0:03:45.2]} 15... Qh5 {[%clk 0:04:40.1]} 16. Qxh5 {[%clk 0:03:39.4]}
16... Nxh5 {[%clk 0:04:37.9]} 17. Rfe1 {[%clk 0:03:10]} 17... Nf6 {[%clk
0:04:33.4]} 18. b3 {[%clk 0:02:52.2]} 18... Rfd8 {[%clk 0:04:32.3]} 19. c4
{[%clk 0:02:34]} 19... h6 {[%clk 0:04:26.2]} 20. c5 {[%clk 0:02:00.1]} 20... Nd5
{[%clk 0:04:23.5]} 21. Bc1 {[%clk 0:01:45.7]} 21... Nc3 {[%clk 0:04:18.9]} 22.
Rd2 {[%clk 0:01:38.3]} 22... Nxa2 {[%clk 0:04:17.6]} 23. Rxa2 {[%clk 0:01:30.9]}
23... Rxd3 {[%clk 0:04:15.4]} 24. Rb2 {[%clk 0:01:14.5]} 24... Bxc5 {[%clk
0:04:11.9]} 25. b4 {[%clk 0:00:56.4]} 25... Bd4 {[%clk 0:04:07.2]} 26. Rc2
{[%clk 0:00:51]} 26... Bc3 {[%clk 0:04:02.7]} 27. Re4 {[%clk 0:00:42.7]} 27...
Rad8 {[%clk 0:03:51.8]} 28. Bb2 {[%clk 0:00:28.5]} 28... Bxb2 {[%clk 0:03:50.2]}
29. Rxb2 {[%clk 0:00:27]} 29... a6 {[%clk 0:03:46.9]} 30. Rbe2 {[%clk
0:00:17.8]} 30... R3d4 {[%clk 0:03:45]} 31. Re5 {[%clk 0:00:09.6]} 31... Rxb4
{[%clk 0:03:43.5]} 32. R2e3 {[%clk 0:00:04.3]} 32... g5 {[%clk 0:03:40.1]} 33.
Rf3 {[%clk 0:00:01.1]} 33... Kg7 {[%clk 0:03:38.7]} 0-1

[Event "Live Chess"]
[Site "Chess.com"]
[Date "2023.05.21"]
[Round "-"]
[White "whatnot126"]
[Black "IgorSchukin"]
[Result "1-0"]
[WhiteElo "2053"]
[BlackElo "1780"]
[TimeControl "300"]
[EndTime "18:53:30 PDT"]
[Termination "whatnot126 won by resignation"]

1. e4 {[%clk 0:04:58.5]} 1... c5 {[%clk 0:04:58.5]} 2. c3 {[%clk 0:04:57.4]}
2... Nc6 {[%clk 0:04:58]} 3. d4 {[%clk 0:04:56.5]} 3... cxd4 {[%clk 0:04:57]} 4.
cxd4 {[%clk 0:04:55.8]} 4... d5 {[%clk 0:04:56.6]} 5. exd5 {[%clk 0:04:54.8]}
5... Qxd5 {[%clk 0:04:55.2]} 6. Nf3 {[%clk 0:04:53.9]} 6... Bg4 {[%clk
0:04:53.1]} 7. Nc3 {[%clk 0:04:53.7]} 7... Bxf3 {[%clk 0:04:51.2]} 8. Nxd5
{[%clk 0:04:53]} 8... Bxd1 {[%clk 0:04:49.5]} 9. Nc7+ {[%clk 0:04:52.4]} 9...
Kd7 {[%clk 0:04:47.4]} 10. Nxa8 {[%clk 0:04:52.3]} 10... Bh5 {[%clk 0:04:38.5]}
11. d5 {[%clk 0:04:51.1]} 11... Nb4 {[%clk 0:04:36.2]} 12. Bb5+ {[%clk
0:04:49.2]} 12... Kd6 {[%clk 0:04:31.3]} 13. Bf4+ {[%clk 0:04:42.1]} 13... Kxd5
{[%clk 0:04:24.4]} 14. O-O {[%clk 0:04:30.4]} 14... e5 {[%clk 0:04:15.2]} 15.
Be3 {[%clk 0:04:23.4]} 15... Nf6 {[%clk 0:04:02.4]} 16. Bxa7 {[%clk 0:04:21.8]}
16... Be7 {[%clk 0:03:39]} 17. Nb6+ {[%clk 0:04:16.4]} 17... Ke4 {[%clk
0:03:30.6]} 18. a3 {[%clk 0:04:10.3]} 18... Nc2 {[%clk 0:03:23.2]} 19. Rac1
{[%clk 0:04:08.1]} 19... Nd4 {[%clk 0:03:21.1]} 20. f3+ {[%clk 0:04:06.5]} 20...
Bxf3 {[%clk 0:02:53.5]} 21. gxf3+ {[%clk 0:04:04.6]} 21... Nxf3+ {[%clk
0:02:52.4]} 22. Kh1 {[%clk 0:03:58.1]} 22... Ng4 {[%clk 0:02:45.5]} 23. Rc4+
{[%clk 0:03:56.4]} 23... Nd4 {[%clk 0:02:40.3]} 24. Na4 {[%clk 0:03:42.4]} 24...
Bh4 {[%clk 0:02:28.6]} 25. Nc3+ {[%clk 0:03:40.8]} 25... Ke3 {[%clk 0:02:24.4]}
26. Nd1+ {[%clk 0:03:20.6]} 26... Kd2 {[%clk 0:02:15.8]} 27. Bxd4 {[%clk
0:03:15.8]} 1-0

[Event "Live Chess"]
[Site "Chess.com"]
[Date "2023.05.21"]
[Round "-"]
[White "wot-not"]
[Black "Tushinskiy"]
[Result "0-1"]
[WhiteElo "1551"]
[BlackElo "2178"]
[TimeControl "300"]
[EndTime "18:53:40 PDT"]
[Termination "Tushinskiy won by resignation"]

1. e4 {[%clk 0:04:56.7]} 1... e5 {[%clk 0:04:54.3]} 2. f4 {[%clk 0:04:56]} 2...
d6 {[%clk 0:04:54.2]} 3. fxe5 {[%clk 0:04:54.4]} 3... dxe5 {[%clk 0:04:52.7]} 4.
Nf3 {[%clk 0:04:54]} 4... Nc6 {[%clk 0:04:51.9]} 5. Bb5 {[%clk 0:04:51.9]} 5...
Bd6 {[%clk 0:04:50.5]} 6. Bxc6+ {[%clk 0:04:50.9]} 6... bxc6 {[%clk 0:04:49.6]}
7. O-O {[%clk 0:04:50.4]} 7... Nf6 {[%clk 0:04:48.9]} 8. d3 {[%clk 0:04:49]}
8... O-O {[%clk 0:04:48.1]} 9. Bg5 {[%clk 0:04:48]} 9... Be7 {[%clk 0:04:46.5]}
10. Nbd2 {[%clk 0:04:46]} 10... Bg4 {[%clk 0:04:44.7]} 11. h3 {[%clk 0:04:42.5]}
11... Bh5 {[%clk 0:04:43.5]} 12. Qe1 {[%clk 0:04:35.8]} 12... Rb8 {[%clk
0:04:41.3]} 13. Nxe5 {[%clk 0:04:31.4]} 13... Qd4+ {[%clk 0:04:39.5]} 14. Kh1
{[%clk 0:04:26.8]} 14... Qxe5 {[%clk 0:04:38.5]} 15. Bf4 {[%clk 0:04:25.4]}
15... Qxb2 {[%clk 0:04:36.9]} 16. Bxc7 {[%clk 0:04:23.9]} 16... Rbc8 {[%clk
0:04:35.3]} 17. Be5 {[%clk 0:04:02.8]} 17... Qxe5 {[%clk 0:04:32.1]} 0-1